fUSD/lending_fUSD_20260313
["ID","MTS","AMOUNT","RATE_DAILY","PERIOD"]
[408316173,1773406232253,-166.66,0.00018844,2]
[408316174,1773406232262,-94.61471255,0.00019048,2]
[408316175,1773406232273,-871.14161176,0.00019048,2]
[408316176,1773406232284,-234.24367569,0.00019048,2]
[408316177,1773406232294,-321.71617174,0.00019049,2]
[408316178,1773406232305,-2642.63241699,0.00019049,2]
[408316179,1773406232316,-275.65141127,0.00019049,2]
[408316180,1773406232325,-296.02914268,0.00019092,2]
[408316181,1773406232339,-5580.78085732,0.00019092,2]
[408316182,1773406232349,-537.09,0.00019106,2]
[408316183,1773406232358,-166.66,0.00019233,2]
[408316184,1773406232367,-79.13064445,0.00019239,2]
[408316185,1773406232379,-1612.39440711,0.00019239,2]
[408316186,1773406232391,-70587.41224844,0.00019239,2]
[408316187,1773406232400,-9999.99,0.00019339,2]
[408316188,1773406232409,-417.18,0.00019339,2]
[408316189,1773406232418,-150.99,0.00019339,2]
[408316190,1773406232430,-17121.54,0.00019339,2]
[408316191,1773406232440,-999.99,0.00019339,2]
[408316192,1773406232451,-150.99,0.00019339,2]
[408316193,1773406232460,-1034.04,0.00019441,2]
[408316194,1773406232470,-500.0,0.00019473,2]
[408316195,1773406232480,-500.0,0.00019473,2]
[408316196,1773406232489,-500.0,0.00019473,2]
[408316197,1773406232500,-166.7,0.00019478,2]
[408316198,1773406232510,-9999.99,0.00019478,2]
[408316202,1773406232725,-328.94,0.00019478,2]
[408316203,1773406232735,-516.89,0.00019478,2]
[408316204,1773406232744,-836.69,0.00019478,2]
[408316205,1773406232753,-299.99,0.00019478,7]
[408316206,1773406232762,-8288.36,0.00019478,2]
[408316207,1773406232771,-27984.30695201,0.00019478,2]
[408316208,1773406232783,-9686.1312932,0.00019478,2]
[408316209,1773406232794,-2413.61553984,0.00019478,2]
[408316210,1773406232805,-970.42449351,0.00019478,2]
[408316211,1773406232815,-3037.07724405,0.00019478,2]
[408316212,1773406232827,-987.75961641,0.00019478,2]
[408316213,1773406232838,-2625.65939992,0.00019478,2]
[408316214,1773406232849,-341.348914,0.00019478,2]
[408316215,1773406232860,-999.42248571,0.00019478,2]
[408316216,1773406232871,-798.714997,0.00019478,2]
[408316218,1773406238282,-43485.93906435,0.00019478,2]
[408316219,1773406238291,-9999.99,0.00019478,2]
[408316220,1773406238301,-166.66,0.00019622,2]
[408316221,1773406238311,-150.0,0.00019672,2]
[408316222,1773406238321,-150.0,0.00019672,2]
[408316223,1773406238331,-250.0,0.00019672,2]
[408316224,1773406238340,-150.0,0.00019672,2]
[408316225,1773406238350,-150.0,0.00019672,2]
[408316226,1773406238360,-150.0,0.00019672,2]
[408316227,1773406238369,-150.0,0.00019672,2]
[408316228,1773406238380,-150.0,0.00019672,2]
[408316229,1773406238390,-150.0,0.00019672,2]
[408316230,1773406238399,-150.0,0.00019672,2]
[408316231,1773406238409,-832.91539973,0.000197,2]
[408316232,1773406238418,-150.0,0.00019727,2]
[408316233,1773406238431,-150.0,0.00019727,2]
[408316234,1773406238440,-150.0,0.00019727,2]
[408316235,1773406238450,-150.0,0.00019727,2]
[408316236,1773406238460,-150.0,0.00019727,2]
[408316237,1773406238473,-150.0,0.00019727,2]
[408316238,1773406238482,-200.0,0.00019782,2]
[408316239,1773406238493,-150.0,0.00019782,2]
[408316240,1773406238505,-200.0,0.00019782,2]
[408316241,1773406238514,-200.0,0.00019782,2]
[408316242,1773406238523,-200.0,0.00019782,2]
[408316243,1773406238533,-200.0,0.00019782,2]
[408316244,1773406238542,-640.3340267,0.00019782,2]
[408316245,1773406238552,-500.0,0.00019799,2]
[408316246,1773406238562,-500.0,0.00019799,2]
[408316248,1773406238572,-490.0,0.00019799,2]
[408316249,1773406238581,-374.70337939,0.000198,2]
[408316250,1773406238590,-150.0,0.00019836,2]
[408316251,1773406238599,-150.0,0.00019871,2]
[408316252,1773406238609,-150.0,0.00019871,2]
[408316253,1773406238618,-500.0,0.00019873,2]
[408316254,1773406238627,-136.49988744,0.00019899,2]
[408316255,1773406238639,-363.50011256,0.00019899,2]
[408316256,1773406238648,-500.0,0.00019899,2]
[408316257,1773406238658,-309.46762747,0.00019899,2]
[408316258,1773406238670,-190.53237253,0.00019899,2]
[408316259,1773406238680,-500.0,0.00019899,2]
[408316260,1773406238690,-182.85762747,0.00019899,2]
[408316261,1773406238702,-317.14237253,0.00019899,2]
[408316262,1773406238712,-185.22650624,0.00019899,2]
[408316263,1773406238724,-158.89079051,0.00019899,2]
[408316264,1773406238733,-445.61070023,0.00019899,2]
[408316265,1773406238744,-54.38929977,0.00019899,2]
[408316266,1773406238754,-500.0,0.00019899,2]
[408316267,1773406238763,-500.0,0.00019899,2]
[408316268,1773406238774,-500.0,0.00019899,2]
[408316269,1773406238784,-500.0,0.00019899,2]
[408316270,1773406238793,-500.0,0.00019899,2]
[408316271,1773406238803,-500.0,0.00019899,2]
[408316272,1773406238812,-500.0,0.00019899,2]
[408316273,1773406238822,-500.0,0.00019899,2]
[408316274,1773406238832,-485.32992184,0.00019899,2]
[408316275,1773406238841,-500.0,0.00019899,2]
[408316276,1773406238851,-500.0,0.00019899,2]
[408316277,1773406238861,-500.0,0.00019899,2]
[408316278,1773406238870,-211.0603817,0.00019899,2]
[408316279,1773406238882,-288.9396183,0.00019899,2]
[408316280,1773406238891,-433.71565809,0.00019899,2]
[408316281,1773406238901,-156.65640271,0.00019899,2]
[408316282,1773406238910,-264.72889022,0.00019899,2]
[408316283,1773406238921,-235.27110978,0.00019899,2]
[408316284,1773406238930,-500.0,0.00019899,2]
[408316285,1773406238939,-500.0,0.00019899,2]
[408316286,1773406238948,-500.0,0.00019899,2]
[408316287,1773406238958,-209.96825287,0.00019899,2]
[408316293,1773406240410,-290.03174713,0.00019899,2]
[408316294,1773406240420,-500.0,0.00019899,2]
[408316295,1773406240433,-500.0,0.00019899,2]
[408316296,1773406240443,-500.0,0.00019899,2]
[408316297,1773406240453,-500.0,0.00019899,2]
[408316298,1773406240463,-500.0,0.00019899,2]
[408316299,1773406240474,-500.0,0.00019899,2]
[408316300,1773406240483,-500.0,0.00019899,2]
[408316301,1773406240492,-500.0,0.00019899,2]
[408316302,1773406240503,-500.0,0.00019899,2]
[408316303,1773406240514,-500.0,0.00019899,2]
[408316304,1773406240524,-500.0,0.00019899,2]
[408316305,1773406240533,-500.0,0.00019899,2]
[408316306,1773406240543,-500.0,0.00019899,2]
[408316307,1773406240552,-500.0,0.00019899,2]
[408316308,1773406240562,-268556.7004,0.000199,2]
[408316309,1773406240572,-19004.0163,0.000199,2]
[408316310,1773406240581,-359.3004285,0.000199,2]
[408316311,1773406240591,-421.13777672,0.000199,2]
[408316312,1773406240600,-370.59552516,0.000199,2]
[408316313,1773406240609,-5131.62,0.00019902,2]
[408316314,1773406240620,-150.0,0.00019926,2]
[408316315,1773406240629,-150.0,0.00019926,2]
[408316316,1773406240638,-500.56489866,0.00019973,2]
[408316317,1773406240648,-621.0,0.00019973,2]
[408316318,1773406240658,-500.0,0.00019973,2]
[408316319,1773406240667,-500.0,0.00019973,2]
[408316320,1773406240676,-151.86783288,0.0001999,2]
[408316321,1773406240686,-500.0,0.00019999,2]
[408316322,1773406240696,-500.0,0.00019999,2]
[408316323,1773406240706,-500.0,0.00019999,2]
[408316324,1773406240718,-212.26351148,0.00019999,2]
[408316325,1773406240728,-2858359.5753215,0.0002,2]
[408316326,1773406240737,-7461.04821138,0.0002,14]
[408316327,1773406240747,-211.3,0.0002,7]
[408316328,1773406240756,-1180.47993758,0.0002,2]
[408316329,1773406240766,-27545.9880659,0.0002,2]
[408316330,1773406240775,-1125.7677934,0.0002,2]
[408316331,1773406240784,-209.48387755,0.0002,2]
[408316332,1773406240794,-157.12454959,0.0002,2]
[408316333,1773406240803,-4160.92,0.0002,2]
[408316334,1773406240812,-166.66,0.0002001,2]
[408316335,1773406240822,-1000.0,0.00020021,2]
[408316336,1773406240831,-1000.0,0.00020021,2]
[408316337,1773406240841,-166.66,0.00020021,2]
[408316338,1773406240851,-292.0,0.00020027,2]
[408316339,1773406240860,-2479.55956846,0.00020062,2]
[408316340,1773406240870,-292.0,0.00020089,2]
[408316341,1773406240882,-168.0,0.00020096,2]
[408316342,1773406240894,-303.79637721,0.00020173,2]
[408316343,1773406240907,-292.0,0.00020195,2]
[408316344,1773406240919,-562.39,0.00020228,2]
[408316345,1773406240932,-292.0,0.00020234,2]
[408316346,1773406240942,-2500.0,0.0002024,2]
[408316347,1773406240953,-195.0,0.0002024,2]
[408316348,1773406240964,-292.0,0.00020289,2]
[408316349,1773406240974,-292.0,0.00020295,2]
[408316350,1773406240985,-292.0,0.00020347,2]
[408316351,1773406240996,-166.66,0.00020399,2]
[408316352,1773406241008,-535.90597519,0.00020421,2]
[408316353,1773406241018,-154.31497708,0.00020427,2]
[408316354,1773406241030,-335.62337251,0.00020462,2]
[408316355,1773406241041,-168.0,0.00020502,2]
[408316356,1773406241052,-1000.0,0.00020521,2]
[408316357,1773406241063,-1000.0,0.00020521,2]
[408316358,1773406241074,-292.0,0.00020528,2]
[408316359,1773406241087,-21648.7,0.00020548,2]
[408316360,1773406241099,-292.0,0.00020554,2]
[408316361,1773406241110,-651.11556502,0.00020568,2]
[408316362,1773406241121,-504.90829082,0.00020568,2]
[408316363,1773406241132,-150.0,0.00020592,2]
[408316364,1773406241143,-166.66,0.00020661,2]
[408316365,1773406241156,-562.39,0.00020699,2]
[408316366,1773406241165,-456.44,0.00020699,2]
[408316367,1773406241175,-22783.11053066,0.000207,2]
[408316368,1773406241187,-292.0,0.00020853,2]
[408316369,1773406241199,-1680.0,0.00020863,2]
[408316370,1773406241210,-205.55,0.00020866,2]
[408316371,1773406241221,-380.0,0.0002088,2]
[408316372,1773406241232,-292.0,0.00020937,2]
[408316373,1773406241243,-168.0,0.00020991,2]
[408316374,1773406241254,-12592.15,0.00021068,2]
[408316375,1773406241266,-1500.0,0.00021068,2]
[408316376,1773406241276,-1505.18477373,0.00021068,2]
[408316377,1773406241287,-168.0,0.00021082,2]
[408316378,1773406241299,-292.0,0.00021107,2]
[408316379,1773406241310,-168.0,0.00021179,2]
[408316380,1773406241321,-168.0,0.00021242,2]
[408316381,1773406241332,-374.70337934,0.00021256,2]
[408316382,1773406241342,-166.66,0.00021301,2]
[408316383,1773406241353,-168.0,0.00021365,2]
[408316384,1773406241365,-292.0,0.00021377,2]
[408316385,1773406241377,-292.0,0.0002145,2]
[408316386,1773406241388,-292.0,0.00021454,2]
[408316387,1773406241399,-43719.57940178,0.000215,2]
[408316388,1773406241413,-3010.164258,0.000215,2]
[408316389,1773406241433,-434.41000008,0.000215,2]
[408316390,1773406241455,-10714.85705494,0.000215,2]
[408316391,1773406241467,-168.0,0.0002153,2]
[408316392,1773406241479,-1343.0,0.00021561,2]
[408316393,1773406241491,-1043.0,0.00021561,2]
[408316394,1773406241502,-629.073,0.00021561,2]
[408316395,1773406241513,-3508.0,0.00021561,2]
[408316396,1773406241524,-922.0,0.00021561,2]
[408316397,1773406241536,-1213.0,0.00021561,2]
[408316398,1773406241549,-1259.0,0.00021561,2]
[408316399,1773406241560,-3753.0,0.00021561,2]
[408316400,1773406241571,-2463.0,0.00021561,2]
[408316401,1773406241582,-414.0,0.00021561,2]
[408316402,1773406241593,-1014.23929202,0.00021616,2]
[408316403,1773406241604,-168.0,0.00021629,2]
[408316404,1773406241616,-456.44,0.0002164,2]
[408316405,1773406241626,-407.10787431,0.00021689,2]
[408316406,1773406241636,-7951.96,0.00021757,2]
[408316407,1773406241647,-205.55,0.00021909,2]
[408316408,1773406241657,-3000.0,0.00021917,2]
[408316409,1773406241668,-3000.0,0.00021917,2]
[408316410,1773406241678,-3000.0,0.00021917,2]
[408316411,1773406241690,-3000.0,0.00021917,2]
[408316412,1773406241702,-3000.0,0.00021917,2]
[408316413,1773406241715,-3000.0,0.00021917,2]
[408316414,1773406241726,-3000.0,0.00021917,2]
[408316415,1773406241736,-3000.0,0.00021917,2]
[408316416,1773406241747,-3000.0,0.00021917,2]
[408316417,1773406241756,-3000.0,0.00021917,2]
[408316418,1773406241766,-3000.0,0.00021917,2]
[408316419,1773406241776,-3000.0,0.00021917,2]
[408316420,1773406241787,-3000.0,0.00021917,2]
[408316421,1773406241797,-3000.0,0.00021917,2]
[408316422,1773406241808,-3051.92,0.00021918,2]
[408316423,1773406241819,-161.52,0.00021918,2]
[408316424,1773406241831,-5000.0,0.00021918,2]
[408316425,1773406241842,-160.91325489,0.00021918,2]
[408316426,1773406241852,-160.91325489,0.00021918,2]
[408316427,1773406241863,-161.28749674,0.00021918,2]
[408316428,1773406241873,-161.28749674,0.00021918,2]
[408316429,1773406241883,-150.40625311,0.00021918,2]
[408316430,1773406241893,-166.66,0.00021941,2]
[408316431,1773406241902,-3000.0,0.00021989,2]
[408316432,1773406241913,-155.0,0.00021999,2]
[408316433,1773406241923,-155.0,0.00021999,2]
[408316434,1773406241934,-10040.68787408,0.00022,2]
[408316435,1773406241945,-429.43,0.00022279,2]
[408316436,1773406241959,-3665.44,0.00022279,2]
[408316437,1773406241969,-5145.88592503,0.000225,2]
[408316442,1773406243472,-30577.07270788,0.000225,2]
[408316443,1773406243483,-456.44,0.0002258,2]
[408316444,1773406243495,-166.66,0.0002258,2]
[408316445,1773406243508,-3627.46758852,0.000226,2]
[408316446,1773406243519,-374.70337934,0.00022711,2]
[408316447,1773406243530,-2185.0,0.00022849,2]
[408316448,1773406243541,-205.55,0.00022952,2]
[408316449,1773406243552,-3000.0,0.00022999,2]
[408316450,1773406243562,-177.81484471,0.00023,2]
[408316451,1773406243586,-31723.95188727,0.00023,2]
[408316452,1773406243601,-4976.42433161,0.00023,2]
[408316453,1773406243621,-7283.69341417,0.00023,2]
[408316454,1773406243636,-261674.23191783,0.00023,2]
[408316455,1773406243648,-187.4,0.00023555,2]
[408316456,1773406243660,-488.35,0.00023722,2]
[408316457,1773406243672,-563.0,0.000238,2]
[408316458,1773406243684,-995.0,0.000238,2]
[408316459,1773406243696,-205.55,0.00023996,2]
[408316460,1773406243709,-155.0,0.00023999,2]
[408316461,1773406243721,-3600.0,0.00024,2]
[408316462,1773406243733,-374.70337934,0.00024167,2]
[408316463,1773406243745,-286.77616675,0.00024199,2]
[408316464,1773406243756,-3721.30404473,0.0002421,2]
[408316466,1773406243768,-359.30042846,0.00024483,2]
[408316468,1773406243780,-150.0,0.00024528,2]
[408316470,1773406243791,-1342.0,0.00024561,2]
[408316472,1773406243802,-1043.0,0.00024561,2]
[408316474,1773406243814,-620.0,0.00024561,2]
[408316476,1773406243825,-805.974,0.00024561,2]
[408316478,1773406243837,-3753.0,0.00024561,2]
[408316480,1773406243849,-2463.0,0.00024561,2]
[408316481,1773406243860,-1000.0,0.00024658,2]
[408316482,1773406243871,-3057.9390564,0.00025,2]
[408316483,1773406243883,-7159.53028566,0.00025,2]
[408316484,1773406243893,-3806.10080392,0.00025,2]
[408316485,1773406243905,-529.91147787,0.00025,2]
[408316486,1773406243915,-150.0,0.00025,2]
[408316487,1773406243927,-205.55,0.00025039,2]
[408316488,1773406243938,-2079.0,0.00025103,2]
[408316489,1773406243950,-2109.0,0.00025103,2]
[408316490,1773406243964,-1885.0,0.00025103,2]
[408316491,1773406243975,-49769.10260997,0.0002539,2]
[408316492,1773406243986,-3368.26481449,0.00025427,2]
[408316493,1773406243997,-633.9,0.000255,14]
[408316494,1773406244008,-374.70337934,0.00025622,2]
[408316495,1773406244020,-261.0,0.00026,2]
[408316496,1773406244032,-205.55,0.00026082,2]
[408316497,1773406244042,-450.35,0.00026198,2]
[408316498,1773406244053,-2670.624,0.000264,13]
[408316499,1773406244064,-184.355,0.000264,13]
[408316500,1773406244075,-374.70337934,0.00027078,2]
[408316501,1773406244086,-3708.63,0.00027123,2]
[408316502,1773406244098,-205.55,0.00027125,2]
[408316503,1773406244109,-151.61200723,0.00027369,2]
[408316504,1773406244120,-832.15384615,0.0002737,2]
[408316505,1773406244132,-715.84615385,0.0002737,2]
[408316506,1773406244143,-1020.0,0.0002737,2]
[408316507,1773406244158,-778.15384615,0.0002737,2]
[408316508,1773406244169,-151.0,0.0002737,2]
[408316509,1773406244180,-808.84615385,0.0002737,2]
[408316510,1773406244192,-464.80614845,0.0002737,2]
[408316511,1773406244205,-4132.48453585,0.0002739,2]
[408316512,1773406244216,-8163.83390507,0.0002739,2]
[408316513,1773406244227,-161.52,0.00027397,2]
[408316514,1773406244238,-1000.0,0.00027397,20]
[408316515,1773406244250,-151.0,0.00027397,2]
[408316516,1773406244262,-151.0,0.00027397,2]
[408316517,1773406244272,-300.0,0.00027397,2]
[408316518,1773406244283,-19105.34,0.00027397,10]
[408316519,1773406244294,-15921.12,0.00027397,10]
[408316520,1773406244305,-11021.2151601,0.00027397,10]
[408316521,1773406244319,-2246.3848399,0.00027397,10]
[408316522,1773406244330,-1043.0,0.00027561,2]
[408316523,1773406244341,-620.0,0.00027561,2]
[408316524,1773406244352,-3753.0,0.00027561,2]
[408316525,1773406244363,-2463.0,0.00027561,2]
[408316526,1773406244374,-178.38,0.00027596,2]
[408316527,1773406244385,-1082.09,0.0002791,2]
[408316528,1773406244396,-51140.63379978,0.00028,2]
[408316529,1773406244407,-722.330612,0.00028,60]
[408316530,1773406244622,-261.0,0.00028,2]
[408316531,1773406244640,-214.7,0.00028037,5]
[408316532,1773406244650,-214.7,0.00028037,5]
[408316533,1773406244660,-214.7,0.00028037,5]
[408316534,1773406244669,-214.7,0.00028037,5]
[408316535,1773406244678,-214.7,0.00028037,5]
[408316536,1773406244689,-214.7,0.00028037,5]
[408316537,1773406244698,-3953.161127,0.00028073,30]
[408316538,1773406244709,-205.55,0.00028169,2]
[408316539,1773406244718,-8969.7353198,0.0002826,10]
[408316540,1773406244728,-219.13803284,0.00028483,14]
[408316541,1773406244737,-374.70337934,0.00028533,2]
[408316542,1773406244747,-222.07,0.00028565,14]
[408316543,1773406244756,-258.67259579,0.00028623,2]
[408316544,1773406244766,-500.0,0.00028885,2]
[408316545,1773406244776,-1628.00897482,0.00028885,2]
[408316546,1773406244785,-151.0,0.00028885,2]
[408316547,1773406244794,-500.0,0.0002894,2]
[408316548,1773406244804,-151.0,0.0002894,2]
[408316549,1773406244812,-600.2919257,0.00028995,2]
[408316550,1773406244822,-151.0,0.00028995,2]
[408316551,1773406244831,-522.0,0.00029,2]
[408316552,1773406244840,-214.7,0.00029031,2]
[408316553,1773406244851,-214.7,0.00029031,2]
[408316554,1773406244860,-214.7,0.00029031,2]
[408316555,1773406244870,-214.7,0.00029031,2]
[408316556,1773406244879,-214.7,0.00029031,2]
[408316557,1773406244889,-214.7,0.00029031,2]
[408316558,1773406244900,-214.7,0.00029031,2]
[408316559,1773406244909,-214.7,0.00029031,2]
[408316560,1773406244919,-151.0,0.0002905,2]
[408316561,1773406244928,-359.30042846,0.00029067,2]
[408316562,1773406244938,-5533.0,0.000291,5]
[408316563,1773406244947,-151.0,0.00029105,2]
[408316564,1773406244959,-151.0,0.0002916,2]
[408316565,1773406244968,-151.0,0.00029215,2]
[408316566,1773406244978,-2000.0,0.00029262,2]
[408316567,1773406244987,-151.0,0.0002927,2]
[408316568,1773406244997,-151.0,0.00029325,2]
[408316569,1773406245007,-151.0,0.0002938,2]
[408316570,1773406245016,-151.0,0.00029435,2]
[408316571,1773406245025,-507.0,0.00029877,2]
[408316572,1773406245035,-150.0,0.00029878,2]
[408316573,1773406245044,-62789.31333059,0.000299,2]
[408316576,1773406246237,-1539.0,0.000299,2]
[408316577,1773406246399,-1065.35,0.000299,2]
[408316578,1773406246456,-1498.2,0.000299,2]
[408316579,1773406246516,-819.91576414,0.000299,2]
[408316580,1773406246528,-3259.18247059,0.000299,2]
[408316581,1773406246539,-374.70337934,0.00029989,2]
[408316582,1773406246549,-572.0,0.00030374,30]
[408316583,1773406246558,-408.0,0.00030374,30]
[408316584,1773406246567,-1043.0,0.00030561,2]
[408316585,1773406246577,-620.0,0.00030561,2]
[408316586,1773406246588,-3753.0,0.00030561,2]
[408316587,1773406246597,-2463.0,0.00030561,2]
[408316588,1773406246607,-247.13,0.000307,7]
[408316589,1773406246616,-1529.55,0.000307,7]
[408316590,1773406246626,-1024.72861785,0.00031154,2]
[408316591,1773406246638,-1009.37392751,0.00031249,30]
[408316592,1773406246647,-507.0,0.00031396,3]
[408316593,1773406246657,-150.0,0.00031434,2]
[408316594,1773406246666,-374.70337934,0.00031444,2]
[408316595,1773406246676,-2038.0,0.000316,2]
[408316596,1773406246686,-500.0,0.00031683,7]
[408316597,1773406246695,-762.51241575,0.0003169,7]
[408316598,1773406246705,-150.0,0.00031746,2]
[408316599,1773406246715,-25000.0,0.00032093,10]
[408316600,1773406246724,-3782.62045479,0.00032094,10]
[408316601,1773406246734,-150.0,0.00032219,2]
[408316603,1773406246743,-528.25,0.000323,14]
[408316604,1773406246753,-200.0,0.00032518,2]
[408316605,1773406246763,-293.14281194,0.0003264,2]
[408316606,1773406246772,-161.52,0.00032877,2]
[408316607,1773406246781,-374.70337934,0.000329,2]
[408316608,1773406246790,-507.0,0.00032914,5]
[408316609,1773406246799,-2000.0,0.0003292,2]
[408316610,1773406246808,-150.0,0.00033,14]
[408316611,1773406246817,-431.04,0.00033,30]
[408316612,1773406246826,-703.03,0.00033,7]
[408316613,1773406246835,-8045.08,0.00033,2]
[408316614,1773406246843,-109756.96,0.00033,14]
[408316615,1773406246852,-3116.408,0.00033561,2]
[408316616,1773406246861,-2463.0,0.00033561,2]
[408316617,1773406246870,-359.30042846,0.0003365,2]
[408316618,1773406246879,-421.13777672,0.0003365,2]
[408316619,1773406246888,-370.59552514,0.0003365,2]
[408316620,1773406246897,-694.99529243,0.00033673,7]
[408316621,1773406246906,-152.0,0.00033781,3]
[408316622,1773406246915,-150.0,0.0003383,2]
[408316623,1773406246924,-151.0,0.00033959,14]
[408316624,1773406246933,-25000.0,0.00033962,10]
[408316625,1773406246942,-8988.14002816,0.00033962,10]
[408316626,1773406247060,-753.6874718,0.00033962,10]
[408316649,1773406901658,1000.0,0.0003287,120]
[408316823,1773407147137,-3640.40454182,0.00017,2]
[408316824,1773407147158,-363.01053339,0.00017376,2]
[408316825,1773407147177,-767.540021,0.00017753,2]
[408316826,1773407147196,-344.959979,0.00018505,2]
[408316827,1773407147215,-200.0,0.00018599,2]
[408316828,1773407147234,-195.0,0.000187,2]
[408316829,1773407147253,-2500.0,0.000187,2]
[408316830,1773407147275,-250.0,0.000187,2]
[408316831,1773407147294,-886.04,0.00018708,2]
[408316832,1773407147314,-200.0,0.00018836,2]
[408316833,1773407147335,-300.0,0.00019128,2]
[408316834,1773407147356,-1200.0,0.00019128,2]
[408316835,1773407147376,-1174.55140768,0.00019129,2]
[408316868,1773407431328,-300.0,0.00019038,2]
[408316870,1773407431337,-80.0,0.00019038,2]
[408316876,1773407431387,-400.0,0.00019038,2]
[408316878,1773407431397,-332.5,0.00019039,2]
[408316879,1773407431445,-1555.25933657,0.00019039,2]
[408316880,1773407431502,-888.63598024,0.00019039,2]
[408316881,1773407431513,-419.3,0.00019039,2]
[408316882,1773407431525,-39894.17298007,0.00019039,2]
[408316883,1773407431537,-2360.33098149,0.00019039,2]
[408316884,1773407431548,-155333.75750482,0.00019039,2]
[408316885,1773407431559,-102054.47978798,0.00019039,2]
[408316886,1773407431570,-1380.09438079,0.00019039,2]
[408316887,1773407431582,-1351.14592439,0.00019039,2]
[408316888,1773407431593,-1670.86245039,0.00019039,2]
[408316889,1773407431604,-911.19119324,0.00019039,2]
[408316894,1773407437402,-431.77195324,0.00019038,2]
[408316896,1773407437415,-68.22804676,0.00019038,2]
[408316898,1773407437424,-211.78256419,0.00019038,2]
[408316900,1773407437435,-288.21743581,0.00019038,2]
[408316901,1773407437445,-314.62316999,0.00019038,2]
[408316902,1773407437458,-185.37683001,0.00019038,2]
[408316903,1773407437467,-500.0,0.00019038,2]
[408316904,1773407437476,-500.0,0.00019038,2]
[408316905,1773407437486,-500.0,0.00019038,2]
[408316906,1773407437495,-500.0,0.00019038,2]
[408316907,1773407437506,-500.0,0.00019038,2]
[408316908,1773407437515,-500.0,0.00019038,2]
[408316909,1773407437525,-500.0,0.00019038,2]
[408316910,1773407437534,-500.0,0.00019038,2]
[408316911,1773407437544,-500.0,0.00019038,2]
[408316912,1773407437554,-500.0,0.00019038,2]
[408316913,1773407437563,-500.0,0.00019038,2]
[408316914,1773407437572,-500.0,0.00019038,2]
[408316915,1773407437582,-500.0,0.00019038,2]
[408316916,1773407437591,-500.0,0.00019038,2]
[408316917,1773407437600,-500.0,0.00019038,2]
[408316918,1773407437610,-500.0,0.00019038,2]
[408316919,1773407437619,-500.0,0.00019038,2]
[408316920,1773407437628,-500.0,0.00019038,2]
[408316921,1773407437637,-500.0,0.00019038,2]
[408316922,1773407437647,-500.0,0.00019038,2]
[408316923,1773407437657,-500.0,0.00019038,2]
[408316924,1773407437666,-500.0,0.00019038,2]
[408316925,1773407437675,-500.0,0.00019038,2]
[408316926,1773407437686,-500.0,0.00019038,2]
[408316927,1773407437695,-500.0,0.00019038,2]
[408316928,1773407437707,-500.0,0.00019038,2]
[408316929,1773407437719,-500.0,0.00019038,2]
[408316930,1773407437728,-500.0,0.00019038,2]
[408316931,1773407437738,-500.0,0.00019038,2]
[408316933,1773407437747,-500.0,0.00019038,2]
[408316935,1773407437759,-487.70086885,0.00019038,2]
[408316937,1773407437768,-500.0,0.00019038,2]
[408316939,1773407437780,-500.0,0.00019038,2]
[408316941,1773407437790,-500.0,0.00019038,2]
[408316943,1773407437799,-500.0,0.00019038,2]
[408316946,1773407437811,-500.0,0.00019038,2]